bitfinex-derivatives/quotes_ETHF0:USTF0_20260115
["timestamp","ask_amount","ask_price","bid_price","bid_amount"]
[1768470997443,2.42432039,3372.7,3371.7,3.848]
[1768470997642,2.42432039,3372.9,3371.7,3.848]
[1768470998039,2.42432039,3372.7,3371.7,3.848]
[1768470998340,2.42432039,3372.8,3371.7,3.848]
[1768470998540,3.39009373,3372.8,3371.7,3.848]
[1768470998734,2.42432039,3372.6,3371.7,3.848]
[1768470999139,3.39009373,3372.8,3371.7,3.848]
[1768470999140,2.42432039,3372.5,3371.7,3.848]
[1768470999437,2.42432039,3372.5,3371.8,3.848]
[1768470999840,2.42432039,3372.4,3371.8,3.848]
[1768471000146,2.42432039,3372.6,3371.8,3.848]
[1768471000544,2.42432039,3372.5,3371.8,3.848]
[1768471000738,2.42432039,3372.6,3371.8,3.848]
[1768471001140,2.42432039,3372.5,3371.8,3.848]
[1768471001334,2.42432039,3372.6,3371.8,3.848]
[1768471001540,3.39009373,3372.8,3371.8,3.848]
[1768471001739,2.42432039,3372.5,3371.8,3.848]
[1768471002243,2.42432039,3372.4,3371.8,3.848]
[1768471002442,2.42432039,3372.5,3371.8,3.848]
[1768471002838,2.42432039,3372.4,3371.8,3.848]
[1768471003039,2.42432039,3372.5,3371.8,3.848]
[1768471003550,2.42432039,3372.4,3371.8,3.848]
[1768471003848,2.42432039,3372.5,3371.9,3.848]
[1768471004041,2.42432039,3372.6,3371.9,3.848]
[1768471004232,2.42432039,3372.5,3371.9,3.848]
[1768471004640,2.42432039,3372.3,3371.9,3.848]
[1768471004851,2.42432039,3372.5,3371.9,3.848]
[1768471005347,2.42432039,3372.3,3371.6,0.14832]
[1768471005549,2.42432039,3372.6,3371.6,0.14832]
[1768471005941,2.42432039,3372.5,3371.6,0.14832]
[1768471006152,2.42432039,3372.6,3371.6,0.14832]
[1768471010647,5.13454635,3372.6,3371.6,0.14832]
[1768471010847,2.71022596,3372.5,3371.3,5.90993759]
[1768471011145,2.71022596,3372.5,3371.3,3.848]
[1768471015544,2.71022596,3372.5,3371.6,0.00444649]
[1768471017349,2.71022596,3373.1,3371.7,3.848]
[1768471017549,0.76846365,3373.0,3371.8,3.848]
[1768471017750,0.76846365,3372.9,3371.8,3.848]
[1768471017949,2.71022596,3373.1,3371.8,3.848]
[1768471018152,0.76841359,3373.0,3371.8,3.848]
[1768471018455,2.71022596,3373.1,3371.8,3.848]
[1768471018755,0.76841786,3373.0,3371.8,3.848]
[1768471019050,2.71022596,3373.1,3371.8,3.848]
[1768471019252,0.86841786,3373.0,3371.8,3.848]
[1768471019441,0.1,3373.0,3371.8,3.848]
[1768471020350,0.08844681,3373.0,3371.9,3.848]
[1768471021258,0.00444649,3373.3,3371.9,6.94746747]
[1768471022561,2.71467245,3373.3,3371.9,3.99631]
[1768471024348,2.71467245,3373.3,3371.7,6.457]
[1768471024349,2.71467245,3373.3,3372.0,3.848]
[1768471024751,2.71467245,3373.3,3371.8,3.848]
[1768471025062,2.71022596,3373.1,3371.8,3.848]
[1768471026157,2.71022596,3372.9,3371.7,3.848]
[1768471027266,0.00444649,3373.3,3371.7,3.848]
[1768471027458,0.76825514,3373.2,3371.7,3.848]
[1768471027665,0.76825514,3373.1,3371.7,3.848]
[1768471027852,0.76825514,3373.0,3371.7,3.848]
[1768471028058,0.76825514,3372.9,3371.7,3.848]
[1768471028258,0.00444649,3373.3,3371.7,3.848]
[1768471028564,0.76820951,3373.2,3371.7,3.848]
[1768471028754,0.76820951,3373.1,3371.7,3.848]
[1768471028949,0.76820951,3373.0,3371.7,3.848]
[1768471029156,0.76820951,3372.9,3371.7,3.848]
[1768471029457,0.76820951,3372.8,3371.7,3.848]
[1768471029761,0.00444649,3373.3,3371.7,3.848]
[1768471029963,0.76815797,3373.2,3371.7,3.848]
[1768471030164,0.76815797,3373.1,3371.8,2.49607727]
[1768471030365,0.76815797,3373.0,3371.8,2.49607727]
[1768471030666,2.42432039,3372.1,3371.7,2.49607727]
[1768471030860,2.42432039,3372.2,3371.8,2.49607727]
[1768471031063,2.42432039,3372.0,3371.8,2.49607727]
[1768471031257,1.41632255,3372.0,3371.8,2.49607727]
[1768471031462,1.41632255,3371.9,3371.8,2.49607727]
[1768471032563,1.41632255,3371.9,3371.6,0.00444649]
[1768471032763,1.41632255,3371.7,3371.6,0.00444649]
[1768471032967,1.41987381,3371.7,3371.6,0.00444649]
[1768471033170,0.00355126,3371.7,3370.8,4.03535868]
[1768471033363,0.00355126,3371.7,3370.9,1.08420121]
[1768471033763,0.00355126,3371.7,3370.9,4.03535868]
[1768471033965,0.00355126,3371.7,3371.0,2.95115747]
[1768471034163,0.00799775,3371.7,3371.0,2.95115747]
[1768471038365,0.00799775,3371.7,3370.7,4.03784484]
[1768471039470,0.00799775,3371.7,3370.7,2.95364363]
[1768471039770,0.00799775,3371.7,3370.7,0.00248616]
[1768471042968,0.00799775,3371.7,3370.2,2.95115747]
[1768471043872,0.77495176,3371.6,3370.2,2.95115747]
[1768471044072,6.19395176,3371.5,3370.2,2.95470772]
[1768471044277,5.419,3371.5,3370.2,2.95470772]
[1768471044471,40.8,3371.4,3370.2,2.95470772]
[1768471044868,2.56938308,3371.3,3369.7,1.88555956]
[1768471045169,0.7745891,3371.2,3369.7,1.88555956]
[1768471045470,1.7948472,3371.3,3369.7,1.88555956]
[1768471045471,0.7745891,3371.1,3369.7,1.88555956]
[1768471045662,7.7948472,3371.3,3369.7,1.88555956]
[1768471045867,0.77391646,3371.2,3369.7,1.88787145]
[1768471046068,0.77391646,3371.1,3369.7,1.88787145]
[1768471046270,7.7948472,3371.3,3369.7,1.88787145]
[1768471046470,0.77335992,3371.2,3369.7,1.88787145]
[1768471046775,0.77335992,3371.1,3369.7,1.88787145]
[1768471046976,7.9431872,3371.3,3369.7,1.88787145]
[1768471047280,0.77336082,3371.2,3369.7,1.88787145]
[1768471047464,0.77336082,3371.1,3369.7,1.88787145]
[1768471047667,7.9431872,3371.3,3369.7,1.88787145]
[1768471047869,0.77287195,3371.2,3369.7,1.88787145]
[1768471048069,0.77287195,3371.1,3369.7,1.88787145]
[1768471048270,7.9431872,3371.3,3369.7,1.88787145]
[1768471048470,0.77248691,3371.2,3369.7,1.88787145]
[1768471048769,0.77250152,3371.1,3369.7,1.88787145]
[1768471048975,5.427,3371.1,3369.7,1.88787145]
[1768471049680,2.461,3371.0,3369.7,1.88787145]
[1768471049976,5.429,3371.0,3369.7,1.88787145]
[1768471051075,5.431,3370.9,3369.7,1.88787145]
[1768471051877,1.9431872,3371.3,3369.7,1.88787145]
[1768471052076,6.20403562,3371.2,3369.7,1.88787145]
[1768471052278,0.77211137,3371.1,3369.7,1.88787145]
[1768471052571,5.58034,3371.2,3369.7,1.88787145]
[1768471052775,1.7948472,3370.8,3368.6,0.14845]
[1768471053873,1.7948472,3370.8,3368.6,0.15222594]
[1768471054376,0.14835,3371.0,3368.6,0.15222594]
[1768471054577,2.466,3370.7,3368.6,0.15222594]
[1768471054772,2.466,3370.7,3368.7,1.88555956]
[1768471054973,0.00444649,3370.0,3368.7,1.88555956]
[1768471055370,0.00444649,3370.0,3369.1,1.88555956]
[1768471056466,1.17965531,3370.0,3369.1,1.88555956]
[1768471056669,1.17520882,3369.7,3369.1,1.88555956]
[1768471057181,1.17965531,3370.0,3368.6,1.8893355]
[1768471057378,0.00444649,3370.0,3368.7,1.88555956]
[1768471057968,0.10444649,3370.0,3368.7,1.88555956]
[1768471065285,1.90287898,3370.0,3368.7,1.88555956]
[1768471065489,5.431,3369.9,3368.7,1.88555956]
[1768471067188,5.431,3369.9,3368.6,0.00377594]
[1768471067380,0.77682315,3369.8,3368.6,0.00377594]
[1768471067579,5.431,3369.9,3368.6,0.00377594]
[1768471067889,0.7768287,3369.8,3368.6,0.00377594]
[1768471068077,0.7768287,3369.7,3368.6,0.00377594]
[1768471068278,5.431,3369.9,3368.6,0.00377594]
[1768471068488,0.77711794,3369.8,3368.6,0.00377594]
[1768471068686,41.57711794,3369.7,3368.6,0.00377594]
[1768471068880,40.8,3369.7,3368.6,0.00377594]
[1768471069382,40.8,3369.7,3368.6,1.8893355]
[1768471069690,43.269,3369.7,3368.6,1.8893355]
[1768471070283,2.469,3369.7,3368.6,1.8893355]
[1768471072489,0.7783237,3369.6,3368.6,1.8893355]
[1768471072683,2.469,3369.7,3368.6,1.8893355]
[1768471072882,0.7783237,3369.6,3368.6,1.8893355]
[1768471073084,2.469,3369.7,3368.6,1.8893355]
[1768471073289,0.77832359,3369.6,3368.6,1.8893355]
[1768471073482,2.469,3369.7,3368.6,1.8893355]
[1768471073681,0.77871606,3369.6,3368.6,1.8893355]
[1768471073891,2.469,3369.7,3368.6,1.8893355]
[1768471074091,0.77871574,3369.6,3368.6,1.8893355]
[1768471074391,0.77893043,3369.5,3368.6,1.8893355]
[1768471074590,2.469,3369.7,3368.6,1.8893355]
[1768471074888,0.77893043,3369.6,3368.6,1.8893355]
[1768471075184,0.77893043,3369.5,3368.6,1.8893355]
[1768471075387,0.14833,3371.4,3369.0,1.47413523]
[1768471075595,0.77869653,3370.9,3369.0,1.47413523]
[1768471075782,0.77869653,3370.8,3369.0,1.47413523]
[1768471076486,0.00444649,3370.2,3369.6,1.47858172]
[1768471078689,0.1,3371.5,3370.2,1.47413523]
[1768471078896,1.94308174,3371.4,3370.2,1.47413523]
[1768471079507,1.17508174,3371.1,3370.2,1.47413523]
[1768471079887,0.00444649,3371.0,3370.2,1.47413523]
[1768471081193,1.17508174,3370.5,3369.6,0.00444649]
[1768471081393,0.76,3370.9,3369.8,1.17508174]
[1768471081597,0.00444649,3371.0,3369.6,1.17952823]
[1768471081794,1.8,3370.8,3369.6,0.00444649]
[1768471083100,1.8,3370.8,3369.7,1.47413523]
[1768471084493,2.481,3370.9,3369.7,1.47413523]
[1768471087500,0.00196034,3371.0,3370.1,1.47413523]
[1768471088605,0.00196034,3371.0,3369.7,1.47413523]
[1768471093904,0.00196034,3371.0,3370.1,1.47413523]
[1768471094110,2.573,3371.5,3370.1,1.47413523]
[1768471095004,0.00444649,3371.1,3370.1,1.47413523]
[1768471095204,0.1,3371.5,3370.5,1.12323899]
[1768471096510,0.00355126,3371.7,3370.9,1.12323899]
[1768471097403,0.00444649,3371.6,3370.9,1.12323899]
[1768471097596,0.00355126,3371.7,3370.9,1.12323899]
[1768471098003,0.363,3372.3,3370.9,1.12323899]
[1768471098706,0.0029643,3371.9,3371.3,0.00444649]
[1768471098906,0.00563037,3371.9,3371.3,0.00704908]
[1768471103411,0.00563037,3371.9,3370.5,0.98329969]
[1768471104615,0.00563037,3371.9,3370.9,0.00444649]
[1768471105707,0.77875744,3371.8,3370.9,0.00444649]
[1768471105910,1.18042506,3371.9,3370.9,0.00444649]
[1768471106101,0.77875699,3371.8,3370.9,0.00444649]
[1768471106620,0.77875699,3371.8,3370.5,0.00237162]
[1768471106806,1.55290481,3371.8,3370.5,0.00237162]
[1768471107006,0.77875699,3371.7,3370.5,0.00237162]
[1768471107512,1.17479469,3371.5,3370.5,0.00237162]
[1768471107709,0.77875699,3371.4,3369.8,0.1484]
[1768471108610,0.77875699,3371.4,3369.8,0.15146067]
[1768471109918,0.77875699,3371.4,3370.3,0.00444649]
[1768471110114,0.77875699,3371.3,3370.3,0.00444649]
[1768471110314,0.77875699,3371.2,3370.3,0.00444649]
[1768471110517,3.26175699,3371.1,3370.3,0.00444649]
[1768471110704,2.483,3371.1,3370.3,0.00444649]
[1768471110910,2.483,3371.1,3370.3,0.0028415]
[1768471112505,2.483,3371.1,3369.8,0.00306067]
[1768471112506,0.77940523,3371.0,3369.8,0.00306067]
[1768471112710,0.77940523,3370.9,3369.8,0.00306067]
[1768471112911,2.483,3371.1,3369.8,0.00306067]
[1768471113113,0.7794132,3371.0,3369.8,0.00306067]
[1768471113421,0.7794132,3370.9,3369.8,0.00306067]
[1768471113721,2.483,3371.1,3369.8,0.00306067]
[1768471113916,0.77942749,3371.0,3369.8,0.00306067]
[1768471114116,0.77942749,3370.9,3369.8,0.00306067]
[1768471114317,2.483,3371.1,3369.8,0.00306067]
[1768471114921,2.483,3371.1,3370.1,0.00444649]
[1768471116416,0.77938115,3371.0,3370.1,0.00444649]
[1768471116719,0.77938115,3370.9,3370.1,0.00444649]
[1768471116924,2.483,3371.1,3370.1,0.00444649]
[1768471117115,0.77940685,3371.0,3370.1,0.00444649]
[1768471117316,0.77940685,3370.9,3370.1,0.00444649]
[1768471117517,2.483,3371.1,3370.1,0.00444649]
[1768471117721,0.77931561,3371.0,3370.1,0.00444649]
[1768471117925,0.77931561,3370.9,3370.1,0.00444649]
[1768471118221,2.483,3371.1,3370.1,0.00444649]
[1768471118523,1.17479469,3370.8,3369.8,0.00306067]
[1768471119623,1.17479469,3371.0,3369.8,0.00306067]
[1768471119826,0.77910954,3370.9,3369.8,0.00306067]
[1768471120125,1.17479469,3371.0,3369.8,0.00306067]
[1768471120325,0.77907511,3370.9,3369.8,0.00306067]
[1768471120524,2.483,3371.1,3369.8,0.00306067]
[1768471120726,0.77899877,3371.0,3369.8,0.00306067]
[1768471120925,0.77899877,3370.9,3369.8,0.00306067]
[1768471121121,2.483,3371.1,3369.8,0.00306067]
[1768471121427,0.77889529,3371.0,3369.8,0.00306067]
[1768471121627,0.77889529,3370.9,3369.8,0.00306067]
[1768471121830,2.483,3371.1,3369.8,0.00306067]
[1768471122030,0.77889529,3371.0,3369.8,0.00306067]
[1768471122225,2.483,3371.1,3369.8,0.00306067]
[1768471122529,0.77878812,3371.0,3369.8,0.00306067]
[1768471122830,2.483,3371.1,3369.8,0.00306067]
[1768471123021,0.77878812,3371.0,3369.8,0.00306067]
[1768471123320,2.483,3371.1,3369.8,0.00306067]
[1768471123521,0.77868896,3371.0,3369.8,0.00306067]
[1768471123828,2.483,3371.1,3369.8,0.00306067]
[1768471124023,0.77868894,3371.0,3369.8,0.00306067]
[1768471124222,2.89879964,3371.1,3369.3,0.82504864]
[1768471124430,0.77860832,3371.0,3369.3,0.82504864]
[1768471124627,2.89879964,3371.1,3369.3,0.82504864]
[1768471124829,0.77860222,3371.0,3369.3,0.82504864]
[1768471125029,2.89879964,3371.1,3369.3,0.82504864]
[1768471125231,0.7778728,3371.0,3369.3,0.8278121]
[1768471125431,2.89879964,3371.1,3369.3,0.8278121]
[1768471125632,0.77779988,3371.0,3369.3,0.8278121]
[1768471125833,2.89879964,3371.1,3369.3,0.8278121]
[1768471126133,0.77779987,3371.0,3369.3,0.8278121]
[1768471126335,2.89879964,3371.1,3369.3,0.8278121]
[1768471126536,0.77776067,3371.0,3369.3,0.8278121]
[1768471126728,2.89879964,3371.1,3369.3,0.8278121]
[1768471127033,0.77776067,3371.0,3369.3,0.8278121]
[1768471127235,2.89879964,3371.1,3369.3,0.8278121]
[1768471127535,0.77780888,3371.0,3369.3,0.8278121]
[1768471127732,2.89879964,3371.1,3369.3,0.8278121]
[1768471127934,0.77780888,3371.0,3369.3,0.8278121]
[1768471128136,5.47,3370.9,3369.9,0.00444649]
[1768471129227,0.1,3371.2,3369.9,0.82949513]
[1768471129434,2.602,3371.2,3369.9,0.82949513]
[1768471129630,0.1,3371.2,3369.9,0.82949513]
[1768471129941,2.503,3371.1,3369.9,0.82949513]
[1768471131038,2.505,3371.1,3369.9,0.82949513]
[1768471133345,0.1,3370.9,3369.9,0.82949513]
[1768471135838,2.611,3370.9,3369.9,0.82949513]
[1768471138343,0.1,3370.9,3369.9,0.82949513]
[1768471138638,2.615,3370.9,3369.9,0.82949513]
[1768471139340,2.615,3370.9,3369.9,0.00444649]
[1768471143538,0.1,3370.9,3369.9,1.17923698]
[1768471143739,2.523,3370.8,3369.9,1.17923698]
[1768471144742,2.523,3370.8,3369.9,0.00444649]
[1768471145644,2.527,3370.7,3369.9,0.00444649]
[1768471146830,0.1,3370.9,3369.9,0.00444649]
[1768471147033,2.527,3370.8,3369.9,0.00444649]
[1768471149342,1.17479049,3370.7,3369.9,0.00444649]
[1768471151946,2.533,3370.6,3369.9,0.00444649]
[1768471154136,2.533,3370.6,3369.4,0.72838756]
[1768471154137,1.17479049,3370.3,3369.3,0.00276346]
[1768471154640,1.17479049,3370.0,3369.3,0.00276346]
[1768471155041,0.1,3370.9,3369.3,0.00276346]
[1768471155242,0.00444649,3370.0,3369.3,0.00276346]
[1768471155545,2.531,3369.9,3369.3,0.00276346]
[1768471156045,0.00444649,3370.0,3369.3,0.00276346]
[1768471160348,0.1,3370.9,3369.4,0.72838756]
[1768471160549,2.108,3370.9,3369.8,1.17479049]
[1768471160745,1.17479049,3370.8,3369.5,0.72838756]
[1768471160952,1.17479049,3370.6,3369.3,0.00276346]
[1768471161259,1.17479049,3370.6,3369.3,1.17755395]
[1768471161552,0.00444649,3370.3,3369.6,0.00444649]
[1768471165447,1.17479049,3370.2,3369.6,0.00444649]
[1768471165653,1.17479049,3370.0,3369.3,0.00276346]
[1768471166263,2.542,3370.1,3369.3,0.00276346]
[1768471167552,0.00444649,3370.3,3369.3,0.00276346]
[1768471167860,2.541,3370.2,3369.3,0.00276346]
[1768471168855,3.71579049,3370.2,3369.3,0.00276346]
[1768471169874,1.17479049,3370.2,3369.3,0.00276346]
[1768471170175,1.17479049,3370.0,3369.3,0.00276346]
[1768471171881,2.54,3370.1,3369.3,0.00276346]
[1768471172972,2.97344649,3370.3,3369.3,0.00276346]
[1768471173172,2.538,3370.0,3369.3,0.00276346]
[1768471174280,1.17479049,3369.4,3368.5,1.08420121]
[1768471174479,1.17479049,3369.4,3368.3,0.55243246]
[1768471174680,1.17479049,3369.6,3368.3,0.55243246]
[1768471175174,1.17479049,3369.6,3368.3,0.55463335]
[1768471175379,1.17721039,3369.6,3368.3,0.55463335]
[1768471177371,1.17479049,3369.3,3368.3,0.55463335]
[1768471177577,1.17479049,3368.9,3368.3,0.00220089]
[1768471177878,0.0024199,3369.6,3368.3,0.00220089]
[1768471177879,1.17479049,3369.2,3368.3,0.00220089]
[1768471178081,1.17479049,3369.3,3368.3,0.00220089]
[1768471179384,1.17479049,3369.3,3367.0,4.42863774]
[1768471179385,1.17479049,3368.4,3367.2,0.55243246]
[1768471179576,3.71379049,3368.4,3367.2,0.55243246]
[1768471179777,0.00445315,3368.3,3367.2,0.55243246]
[1768471180286,0.00445315,3368.3,3367.5,0.20134021]
[1768471181187,0.00445315,3368.3,3367.2,0.55243246]
[1768471181577,0.00445315,3368.3,3367.0,2.55619293]
[1768471181786,1.17479049,3368.1,3367.0,2.55619293]
[1768471182292,1.17479049,3367.9,3367.0,2.55988865]
[1768471183192,0.00445315,3368.3,3367.0,2.55988865]
[1768471183493,1.17479049,3368.0,3367.0,2.55988865]
[1768471186388,2.539,3367.9,3367.0,2.55988865]
[1768471187389,1.17479049,3367.8,3367.0,2.55988865]
[1768471187581,2.539,3367.9,3367.0,2.55988865]
[1768471192403,40.80445315,3368.3,3367.1,0.43885208]
[1768471192592,2.55,3368.2,3367.1,0.43885208]
[1768471193597,0.00445315,3368.3,3367.4,1.61364257]
[1768471193801,0.737,3368.2,3367.5,0.43885208]
[1768471195103,0.737,3368.2,3367.1,0.43885208]
[1768471196190,1.17479049,3368.1,3367.1,0.43885208]
[1768471196392,2.555,3368.2,3367.6,0.43885208]
[1768471199203,2.558,3368.5,3367.7,0.43885208]
[1768471199706,2.557,3368.7,3367.7,0.43885208]
[1768471200401,0.00445315,3368.5,3367.7,0.43885208]
[1768471200598,2.557,3368.7,3367.7,0.43885208]
[1768471201102,1.17479049,3368.2,3367.1,0.14852]
[1768471201292,1.17479049,3368.2,3367.0,2.55988865]
[1768471201494,1.17479049,3367.9,3367.0,2.55988865]
[1768471201695,0.00445315,3367.9,3367.0,2.55988865]
[1768471201897,0.00348066,3367.9,3367.2,1.17479049]
[1768471202096,2.556,3368.5,3367.2,1.17479049]
[1768471202301,1.17479049,3368.3,3367.0,2.55988865]
[1768471203208,0.00445315,3368.0,3367.0,2.55988865]
[1768471203694,0.00445315,3368.0,3367.0,2.99874073]
[1768471205003,0.00445315,3368.0,3367.3,0.43885208]
[1768471205201,2.553,3368.5,3367.6,0.43885208]
[1768471205505,1.17642237,3369.1,3367.6,0.43885208]
[1768471205711,2.553,3368.7,3367.6,0.43885208]
[1768471205909,40.8,3369.1,3367.6,0.43885208]
[1768471206102,5.38873228,3369.2,3368.6,0.43885208]
[1768471206307,0.43750108,3369.7,3368.6,6.0]
[1768471206506,0.43750108,3369.7,3368.4,0.14846]
[1768471207213,0.44025057,3369.7,3367.7,2.38742237]
[1768471207413,0.00445315,3369.0,3368.4,0.00445315]
[1768471208502,2.551,3370.6,3368.5,1.17642237]
[1768471208709,2.551,3370.6,3368.4,0.00445315]
[1768471209512,0.00294656,3369.8,3368.4,0.00445315]
[1768471211208,0.00294656,3369.8,3368.5,3.848]
[1768471212314,1.61392345,3369.5,3368.4,0.00445315]
[1768471212512,0.43750108,3369.5,3368.4,0.00445315]
[1768471212818,0.87775165,3369.5,3368.4,0.00445315]
[1768471216112,0.44025057,3369.4,3368.4,0.00445315]
[1768471217618,0.44044764,3369.8,3368.4,0.00445315]
[1768471220426,0.00294656,3369.8,3369.1,1.17642237]
[1768471220630,0.00294656,3369.8,3368.7,0.14845]
[1768471220631,0.33627138,3369.8,3368.7,0.14845]
[1768471221131,0.33627138,3369.8,3368.4,0.00445315]
[1768471221132,0.33332482,3369.7,3368.4,0.00445315]
[1768471222327,0.00294656,3369.8,3367.2,0.14851]
[1768471222328,0.33332482,3368.7,3367.2,0.14851]
[1768471222730,0.33332482,3368.7,3367.2,1.32493237]
[1768471223029,0.33332482,3368.7,3367.3,0.14851]
[1768471223431,0.33332482,3368.7,3367.0,9.73631102]
[1768471223432,0.33332482,3368.7,3367.7,0.00445315]
[1768471226142,0.32290208,3369.5,3367.8,1.17642237]
[1768471226440,0.32290208,3369.5,3367.7,0.00445315]
[1768471227334,0.32290208,3369.5,3367.7,0.15294315]
[1768471230132,0.32290208,3368.9,3367.7,0.15294315]
[1768471235443,0.32290208,3368.9,3367.8,3.848]
[1768471236740,0.32290208,3368.9,3367.8,0.14849]
[1768471239446,0.32290208,3368.6,3367.8,0.14849]
[1768471239641,0.32290208,3368.6,3367.6,2.08275809]
[1768471239843,0.32290208,3368.6,3367.2,2.62332394]
[1768471240148,0.32290208,3368.6,3367.2,0.14851]
[1768471240746,0.32290208,3368.6,3367.6,0.00445315]
[1768471241147,0.32290208,3368.6,3367.2,0.14851]
[1768471241449,1.17642237,3368.7,3366.7,3.848]
[1768471241450,0.32290208,3367.9,3366.7,2.62332394]
[1768471242448,0.32735523,3367.6,3367.0,0.00445315]
[1768471242641,0.32735523,3367.6,3366.7,0.00263803]
[1768471244249,1.5037776,3367.6,3366.7,0.00263803]
[1768471244551,0.32290208,3367.5,3366.7,0.00263803]
[1768471244848,0.32290208,3367.5,3366.8,0.00445315]
[1768471250146,0.32290208,3367.5,3366.2,2.08639811]
[1768471250347,0.32290208,3367.5,3366.6,0.14854]
[1768471250548,0.32290208,3367.5,3366.2,2.08639811]
[1768471250744,0.32290208,3367.5,3366.6,0.14854]
[1768471250950,0.32290208,3367.5,3366.1,2.08639811]
[1768471251155,1.18087552,3367.6,3366.6,0.14854]
[1768471251156,0.28762137,3367.1,3366.6,0.14854]
[1768471251446,0.28762137,3367.1,3366.1,0.00227591]
[1768471252349,0.28762137,3367.1,3365.8,0.14858]
[1768471252751,1.17642237,3366.8,3365.5,2.08639811]
[1768471252954,0.28762137,3366.2,3365.2,0.1486]
[1768471253145,0.15295315,3367.6,3364.9,0.15155062]
[1768471253146,1.17642237,3367.5,3364.9,0.15155062]
[1768471253344,0.00445315,3366.5,3365.3,0.15155062]
[1768471253545,40.8,3367.8,3365.3,0.15155062]
[1768471253757,40.8,3367.8,3365.4,3.848]
[1768471254054,0.00380076,3367.9,3365.4,3.848]
[1768471254659,0.00445315,3367.0,3366.1,0.14856]
[1768471254861,0.00445315,3367.0,3366.3,0.00445315]
[1768471255054,0.28762137,3367.8,3366.4,0.14855]
[1768471256143,0.00445315,3367.4,3366.4,0.14855]
[1768471258456,0.29207452,3367.4,3366.4,0.14855]
[1768471260157,0.29207452,3367.4,3366.3,0.00445315]
[1768471260457,0.29207452,3367.4,3365.6,0.14859]
[1768471260863,0.28762137,3367.3,3365.6,0.14859]
[1768471261454,0.28762137,3367.3,3366.1,0.00445315]
[1768471261655,0.28762137,3367.2,3365.6,0.14859]
[1768471261954,0.28762137,3367.2,3364.8,0.14862]
[1768471262261,0.28762137,3367.1,3364.9,0.14861]
[1768471263251,0.28762137,3367.1,3365.5,0.14859]
[1768471264349,0.28762137,3367.1,3364.8,0.14862]
[1768471264557,0.28762137,3367.1,3364.9,0.14862]
[1768471266763,0.76544867,3367.0,3364.9,0.14862]
[1768471266963,0.28762137,3366.8,3364.9,0.14862]
[1768471267470,0.28762137,3366.5,3364.7,0.00335445]
[1768471267668,0.28762137,3366.3,3364.7,0.00335445]
[1768471267866,0.28762137,3366.0,3364.7,0.00335445]
[1768471268066,0.00445315,3365.7,3364.7,0.00335445]
[1768471268764,0.29207452,3365.7,3364.7,0.00335445]
[1768471270864,0.00445315,3365.7,3364.7,0.00335445]
[1768471271070,3.15e-06,3365.7,3364.7,0.00335445]
[1768471271369,3.15e-06,3365.7,3365.0,0.14861]
[1768471271771,3.15e-06,3365.7,3364.7,0.00335445]
[1768471271772,3.15e-06,3365.7,3365.1,0.14861]
[1768471271969,42.60274002,3367.3,3365.2,0.1486]
[1768471272176,45.13474002,3367.3,3365.2,0.1486]
[1768471272376,2.82062137,3367.2,3365.2,0.1486]
[1768471272976,0.00445315,3366.5,3365.2,0.1486]
[1768471274476,0.00445315,3366.5,3365.5,0.00445315]
[1768471276678,0.57524274,3366.3,3365.5,0.00445315]
[1768471276877,0.28762137,3366.1,3365.2,0.1486]
[1768471277082,0.57524274,3366.1,3364.7,0.00335445]
[1768471277379,0.28762137,3366.1,3364.7,0.00335445]
[1768471282980,0.24160343,3365.9,3364.7,0.00335445]
[1768471283276,0.21781441,3365.7,3364.7,0.00335445]
[1768471283776,0.50543578,3365.5,3364.7,0.00335445]
[1768471283978,0.22142375,3365.5,3364.7,0.00335445]
[1768471284184,0.28762137,3365.2,3364.7,0.00149876]
[1768471284480,0.28762137,3365.4,3364.7,0.00149876]
[1768471284871,0.28762137,3365.3,3364.7,0.00149876]
[1768471285066,0.22142375,3365.5,3364.7,0.00149876]
[1768471285273,0.28762137,3365.3,3364.7,0.00149876]
[1768471285783,0.50543578,3365.2,3364.7,0.00149876]
[1768471285982,0.21781441,3365.2,3364.7,0.00149876]
[1768471286276,0.50543578,3365.2,3364.7,0.00149876]
[1768471286682,0.28762137,3365.1,3364.7,0.00149876]
[1768471286882,0.28762137,3365.1,3363.6,2.08344534]
[1768471287084,3.15e-06,3364.7,3363.6,2.08344534]
[1768471287380,0.00360934,3365.5,3364.5,0.14863]
[1768471287779,0.00360934,3365.5,3364.5,0.15119625]
[1768471287981,0.00360934,3365.5,3364.6,0.14863]
[1768471288378,0.00445315,3365.4,3364.6,0.14863]
[1768471288773,0.00445315,3365.4,3364.7,0.00445315]
[1768471290977,0.21781441,3365.3,3364.0,2.08344534]
[1768471291178,0.21781441,3365.3,3363.9,2.08344534]
[1768471291687,0.21781441,3365.3,3363.8,0.14866]
[1768471292079,0.21781441,3365.3,3363.8,0.15098564]
[1768471292679,0.21781441,3365.3,3363.9,0.14866]
[1768471293277,0.21781441,3365.3,3364.0,0.14866]
[1768471293489,0.21781441,3365.3,3364.1,0.14865]
[1768471293983,0.50543578,3365.3,3364.1,0.14865]
[1768471294585,0.00445315,3365.4,3363.8,0.2235679]
[1768471295589,0.00445315,3365.4,3364.3,0.14864]
[1768471298090,0.00445315,3365.4,3364.5,0.14863]
[1768471298289,0.00360934,3365.5,3364.6,3.848]
[1768471299289,0.00445315,3365.4,3364.7,0.00445315]
[1768471301994,1.17827035,3365.8,3364.7,0.00445315]
[1768471302385,1.17827035,3365.7,3364.7,0.00445315]
[1768471302995,0.00445315,3365.5,3364.7,0.00445315]
[1768471304793,1.17827035,3365.4,3364.7,0.00445315]
[1768471305183,0.28762137,3365.2,3364.7,0.00445315]
[1768471305389,1.46589172,3365.2,3364.7,0.00445315]
[1768471305591,0.28762137,3365.1,3364.7,0.00445315]
[1768471307089,0.28762137,3365.0,3364.7,0.00445315]
[1768471307289,0.28762137,3365.1,3364.7,0.00445315]
[1768471307489,0.28762137,3365.0,3364.7,0.00445315]
[1768471307692,0.28762137,3365.1,3364.7,0.00445315]
[1768471308095,0.28762137,3365.0,3364.7,0.00445315]
[1768471308302,0.28762137,3365.0,3364.6,0.14863]
[1768471308595,1.39608476,3365.3,3364.6,0.14863]
[1768471308799,0.28762137,3365.2,3364.6,0.14863]
[1768471308996,1.39608476,3365.3,3364.6,0.14863]
[1768471308997,1.46589172,3365.1,3364.6,0.14863]
[1768471309297,0.28762137,3364.8,3364.0,2.62332394]
[1768471309598,0.21781441,3365.0,3364.0,2.77198394]
[1768471309798,0.50543578,3365.0,3364.0,2.77198394]
[1768471311192,0.21781441,3365.0,3364.0,2.77198394]